Cogmind - Beta 15 @@@ ROGUE MODE // 2025.09.21 @ 18:42:09 Player: c4-BRK Result: Destroyed by H-66 Slayer with Gauss Rifle Performance ------------- Evolutions (4) 2000 Regions Visited (7) 1400 Robots Destroyed (26) 130 Value Destroyed (758) 758 Prototype IDs (14) 280 Alien Tech Used (0) 0 Bonus (800) 800 TOTAL SCORE: 5368 Bonus ------- Registered with UFD 300 Met Optimus in HQ 500 Cogmind --------- Core Integrity 0/850 Matter 0/300 Energy 100/100 System Corruption 10% Temperature Cool (0) Movement Hovering (60) Location -6/Factory Parts ------- > --- POWER (2) -------- (None) > --- PROPULSION (3) --- Improved Gravmag System > --- UTILITY (7) ------ Advanced Targeting Computer > --- WEAPON (3) ------- Improved Heavy Machine Gun > --- INVENTORY (5) ---- Scrap Suit Decoy Drone Bay Grenade Launcher Peak State ------------ > --- POWER ------------ Ion Engine Light Angular Momentum Engine > --- PROPULSION ------- Advanced Treads Wheel Wheel > --- UTILITY ---------- Advanced Heat Sink Large Storage Unit Spectral Analyzer Sensor Array Surveybot 17 Chip Hardened Light Armor Plating Hardened Medium Armor Plating > --- WEAPON ----------- Phase Cannon Magnetic Acceleration Cannon Antimatter Cannon > --- INVENTORY -------- Light Angular Momentum Engine Scrap Suit Experimental Sensor Array Decoy Drone Bay Arc Projector Light EM Pulse Cannon Light EM Pulse Cannon Light EM Pulse Cannon Assault Rifle Proton Missile Launcher Grenade Launcher [Rating: 60] Favorites ----------- Power Ion Engine Engine Ion Engine Power Core Light Nuclear Core Propulsion Wheel Treads Advanced Treads Wheel Wheel Hover Unit Improved Gravmag System Utility Sensor Array Device Sensor Array Storage Small Storage Unit Processor Surveybot 17 Chip Protection Hardened Light Armor Plating Weapon Assault Rifle Energy Gun Small Laser Energy Cannon Light EM Pulse Cannon Ballistic Gun Assault Rifle Ballistic Cannon Antimatter Cannon Launcher Proton Missile Launcher Build | -11 -10 -10 -10 -9 -6 -6 -6 ------- Run | Yrd Mat Min Sub Scr Fac Was Fac Slots Evolved 8 | . . . . . 8 . . Power 1 | . . . . . 1 . . Propulsion 1 | . . . . . 1 . . Utility 5 | . . . . . 5 . . Weapon 1 | . . . . . 1 . . Parts Attached 33 | 6 2 . 2 1 18 . 4 Power 5 | 1 . . 1 . 3 . . Engine 4 | 1 . . 1 . 2 . . Core 1 | . . . . . 1 . . Reactor . | . . . . . . . . Propulsion 6 | 2 . . 1 . 2 . 1 Treads 1 | . . . . . 1 . . Leg . | . . . . . . . . Wheel 4 | 2 . . 1 . 1 . . Hover 1 | . . . . . . . 1 Flight . | . . . . . . . . Utility 11 | 1 1 . . 1 7 . 1 Device 3 | . 1 . . . 2 . . Storage 2 | 1 . . . 1 . . . Processor 3 | . . . . . 2 . 1 Hackware . | . . . . . . . . Protection 3 | . . . . . 3 . . Artifact . | . . . . . . . . Weapon 11 | 2 1 . . . 6 . 2 Energy Gun 3 | 1 . . . . 1 . 1 Energy Cannon 3 | . 1 . . . 2 . . Ballistic Gun 2 | 1 . . . . . . 1 Ballistic Cannon 2 | . . . . . 2 . . Launcher 1 | . . . . . 1 . . Special Weapon . | . . . . . . . . Impact Weapon . | . . . . . . . . Slashing Weapon . | . . . . . . . . Piercing Weapon . | . . . . . . . . Special Melee Weapon . | . . . . . . . . Unidentified Prototypes 2 | . . . . . 1 . 1 Parts Lost 20 | . . . 1 . 18 . 1 Power 3 | . . . 1 . 2 . . Propulsion 3 | . . . . . 3 . . Utility 8 | . . . . . 8 . . Weapon 6 | . . . . . 5 . 1 Highest Loss Streak 8 | . . . 1 . 8 . 1 To Critical Strikes . | . . . . . . . . Average Backups 6 | . 1 6 6 7 9 3 3 Power . | . . . . . . . . Propulsion . | . . . . . . . . Utility 2 | . . 2 3 3 2 2 2 Weapon 3 | . 1 3 3 3 5 1 1 Tool/Special . | . . . . . . . . Unused Backups 6 | . . . 2 . 1 . 3 Power . | . . . . . . . . Propulsion . | . . . . . . . . Utility 3 | . . . 1 . . . 2 Weapon 2 | . . . . . 1 . 1 Tool/Special 1 | . . . 1 . . . . Average Slot Usage (%) 80 | . 96 100 97 100 72 . 2 Engine 11 | . 14 14 11 14 9 . . Treads 1 | . . . . . 4 . . Wheel 19 | . 28 28 28 28 8 . . Device 10 | . 10 14 14 14 6 . . Storage 10 | . 14 14 14 14 5 . . Processor 2 | . . . . . 8 . . Protection 1 | . . . . . 7 . . Energy Cannon 9 | . . 14 14 14 5 . . Ballistic Gun 9 | . 14 14 14 14 1 . . Ballistic Cannon 2 | . . . . . 9 . . Peak Build Rating 60 | 6 8 11 11 14 60 2 16 Average Rating 18 | 3 6 10 10 11 42 2 3 On Entrance 6 | . 6 8 11 11 14 2 2 Naked Turns 359 | . . . . . 6 94 259 Heaviest Build 73 | 13 17 17 17 32 73 . 5 Greatest Support 26 | 26 26 26 26 20 22 3 10 Greatest Overweight (x) 13 | . . . . 1 13 . 1 Average Overweight (x) . | . . . . . 3 . . Largest Inventory Capacity 15 | 8 8 8 8 15 15 5 5 Average Capacity 10 | 6 8 8 8 11 14 5 5 Most Carried 13 | 3 5 8 8 13 13 5 5 Average Carried 8 | . 1 7 7 9 11 5 5 Final Capacity 15 | 8 8 8 8 15 5 5 5 Final Carried 13 | . 5 8 8 13 5 5 5 Class Distribution -------------------- 77% | Mutant 11% | Tank 5% | Scavenger-Tank 3% | Skirmisher Dominant Class ---------------- Mutant | -10/Materials Mutant | -10/Mines Mutant | -10/Subcaves Mutant | -9/Scraptown Tank | -6/Factory Mutant | -6/Waste Mutant | -6/Factory Resources | -11 -10 -10 -10 -9 -6 -6 -6 ----------- Run | Yrd Mat Min Sub Scr Fac Was Fac Matter Collected 680 | 221 34 70 34 . 257 . 64 Remotely . | . . . . . . . . Salvage Created 759 | . 101 97 196 . 365 . . Parts 63 | . 9 8 13 . 33 . . Haulers Intercepted 1 | . 1 . . . . . . Recyclers Shooed 1 | . . . . . 1 . . Parts Field Recycled . | . . . . . . . . Retrieved Matter . | . . . . . . . . Parts Self-Destructed 10 | . . . 10 . . . . Prevented 3 | . . . 3 . . . . Kills | -11 -10 -10 -10 -9 -6 -6 -6 ------- Run | Yrd Mat Min Sub Scr Fac Was Fac Combat Hostiles Destroyed 18 | . . 2 6 . 10 . . Guns 3 | . . . 3 . . . . Cannons 15 | . . 2 3 . 10 . . Classes Destroyed 10 | . 3 1 2 . 4 . . Worker 1 | . . . . . 1 . . Builder 3 | . . . . . 3 . . Hauler 1 | . 1 . . . . . . Operator 2 | . 2 . . . . . . Watcher 1 | . 1 . . . . . . Swarmer 7 | . . . 3 . 4 . . Grunt 7 | . . 2 2 . 3 . . Hunter 2 | . . . . . 2 . . Programmer 1 | . . . . . 1 . . Subdweller 1 | . . . 1 . . . . Best Kill Streak 6 | . 2 2 3 . 6 . . Combat Bots Only 4 | . . 2 3 . 4 . . Max Kills in Single Turn 2 | . 1 1 1 . 2 . . Gunslinging . | . . . . . . . . Exploded . | . . . . . . . . Melee . | . . . . . . . . Uniques/NPCs Destroyed . | . . . . . . . . Combat | -11 -10 -10 -10 -9 -6 -6 -6 -------- Run | Yrd Mat Min Sub Scr Fac Was Fac Hostile Shots Fired 220 | . . 6 13 . 163 2 36 Missed 52 | . . 3 5 . 34 1 9 Hits 168 | . . 3 8 . 129 1 27 Melee 1 | . . . . . . 1 . Projectile 167 | . . 3 8 . 129 . 27 AOE 1 | . . . . . 1 . . Critical Strikes 10 | . . . . . 9 1 . Part Disruptions 1 | . . . . . 1 . . Damage Taken 3200 | . . 41 107 . 2597 49 406 Core 872 | . . . . . 598 49 225 Absorbed by Shields . | . . . . . . . . Core Remaining (%) 100 | 100 . . . 100 . . . Volleys Fired 76 | . 10 5 9 . 47 . 5 Largest 3 | . 2 2 2 . 3 . 1 Hottest 162 | . 60 76 76 . 162 . 15 Shots Fired 166 | . 18 10 18 . 115 . 5 Gun 48 | . 18 5 9 . 11 . 5 Cannon 116 | . . 5 9 . 102 . . Launcher 2 | . . . . . 2 . . Special . | . . . . . . . . Kinetic 99 | . 10 5 9 . 70 . 5 Thermal 33 | . 8 . . . 25 . . Explosive . | . . . . . . . . Electromagnetic 34 | . . 5 9 . 20 . . Robot Hit Streak 8 | . 7 5 8 . 7 . 6 Robot Miss Streak 4 | . 2 3 1 . 4 . 2 Penetration Max . | . . . . . . . . Secondary Targets . | . . . . . . . . Shots Hit Robots 91 | . 11 6 12 . 59 . 3 Core Hits 43 | . 7 4 8 . 22 . 2 Critical Kills . | . . . . . . . . Critical Parts Destroyed 1 | . . . . . 1 . . Critical Strikes 1 | . . . . . 1 . . Destroy 1 | . . . . . 1 . . Melee Attacks . | . . . . . . . . Impact . | . . . . . . . . Slashing . | . . . . . . . . Piercing . | . . . . . . . . Sneak Attacks . | . . . . . . . . Combat Hostiles . | . . . . . . . . Follow-up Attacks . | . . . . . . . . Damage Inflicted 2235 | . 128 112 207 . 1738 . 50 Guns 355 | . 128 39 76 . 62 . 50 Cannons 1823 | . . 73 131 . 1619 . . Explosions 57 | . . . . . 57 . . Melee . | . . . . . . . . Ramming . | . . . . . . . . Kinetic 1411 | . 82 39 76 . 1164 . 50 Thermal 393 | . 46 . . . 347 . . Explosive . | . . . . . . . . Electromagnetic 431 | . . 73 131 . 227 . . Impact . | . . . . . . . . Slashing . | . . . . . . . . Piercing . | . . . . . . . . Highest Corruption 10 | . . . . . 10 10 10 Average Corruption 5 | . . . . . 2 10 10 Corruption Purged . | . . . . . . . . Corruption Blocked . | . . . . . . . . Effects 27 | . . . . . 8 10 9 Message Errors 4 | . . . . . 1 1 2 Matter Fused 4 | . . . . . 1 2 1 Heat Flow Errors 2 | . . . . . . . 2 Energy Discharges 4 | . . . . . 1 2 1 Parts Rejected 1 | . . . . . 1 . . Data Loss (minor) 2 | . . . . . 1 . 1 Data Loss (major) 4 | . . . . . 3 . 1 Misdirections 6 | . . . . . . 5 1 Overload Shots . | . . . . . . . . Overflow Damage 129 | . . . . . 129 . . Projectiles 57 | . . . . . 57 . . Explosions 72 | . . . . . 72 . . Melee . | . . . . . . . . Knockbacks 14 | . . . . . 14 . . Impact . | . . . . . . . . Kinetic 13 | . . . . . 13 . . Secondary 1 | . . . . . 1 . . Self-Inflicted Damage 159 | . . . . . 159 . . Shots 3 | . . . . . 3 . . Rammed . | . . . . . . . . Targets Rammed . | . . . . . . . . Kicked . | . . . . . . . . Crushed . | . . . . . . . . Highest Temperature 359 | . . 54 . . 359 . 126 Average Temperature 119 | . . 27 . . 130 . 63 Received Heat Transfer 174 | . . 21 24 . 129 . . Effects 2 | . . . . . 2 . . Energy Bleed 1 | . . . . . 1 . . Matter Decay 1 | . . . . . 1 . . Siege Activations . | . . . . . . . . Martial Activations . | . . . . . . . . Shielding Activations . | . . . . . . . . Robots Disrupted . | . . . . . . . . Combat Hostiles . | . . . . . . . . Robots Corrupted . | . . . . . . . . Combat Hostiles . | . . . . . . . . Parts Fried 1 | . . 1 . . . . . Impact Corruptions 1 | . . . . . 1 . . Robots Melted . | . . . . . . . . Combat Hostiles . | . . . . . . . . Parts Melted . | . . . . . . . . Heat Transferred 507 | . 100 . . . 407 . . Parts Sabotaged . | . . . . . . . . Parts Stolen . | . . . . . . . . Parts Stripped . | . . . . . . . . Power Chain Reactions . | . . . . . . . . Alert | -11 -10 -10 -10 -9 -6 -6 -6 ------- Run | Yrd Mat Min Sub Scr Fac Was Fac Maximum Alert Level . | . . . . . . . . Low Security (%) 100 | 100 100 100 . . 100 100 100 Level 1 . | . . . . . . . . Level 2 . | . . . . . . . . Level 3 . | . . . . . . . . Level 4 . | . . . . . . . . Level 5 . | . . . . . . . . High Security . | . . . . . . . . Max Security . | . . . . . . . . Peak Influence 103 | . 7 50 . . 103 10 45 Initial 10 | . . . . . . 10 . Average 11 | . 1 5 . . 19 2 5 Influence Increases 631 | . 35 50 120 . 376 . 50 Destroy 0b10 Robot/C 340 | . . 40 100 . 200 . . Destroy 0b10 Robot/NC 40 | . 20 . . . 20 . . Destroy Leader 74 | . 4 10 20 . 40 . . Successful Hack 16 | . 11 . . . . . 5 Disable Machine 15 | . . . . . 15 . . Destroy Structure 41 | . . . . . 41 . . Lose Combat Pursuer 105 | . . . . . 60 . 45 Influence Decreases 606 | . 35 50 120 . 346 30 25 Entered New Map 20 | . . . . . . 20 . Time Decay 442 | . 35 50 110 . 212 10 25 Lost Part 144 | . . . 10 . 134 . . Squads Dispatched 9 | . . . . . 7 . 2 Investigation 2 | . . . . . 1 . 1 Extermination 2 | . . . . . 2 . . Reinforcement 5 | . . . . . 4 . 1 Assault . | . . . . . . . . Garrison . | . . . . . . . . Intercept . | . . . . . . . . Searches Triggered . | . . . . . . . . Construction Impeded 2 | . . . . . 2 . . Haulers Reinforced . | . . . . . . . . Active Scanning Responses . | . . . . . . . . Cargo Convoy Interrupts . | . . . . . . . . Stealth | -11 -10 -10 -10 -9 -6 -6 -6 --------- Run | Yrd Mat Min Sub Scr Fac Was Fac Distress Signals . | . . . . . . . . Communications Jammed . | . . . . . . . . Distress Signals . | . . . . . . . . Times Spotted 46 | . 5 2 6 . 22 6 5 Peak Tracking Total 7 | . 3 2 3 . 6 6 7 Tactical Retreats 4 | . . . . . 3 . 1 Traps | -11 -10 -10 -10 -9 -6 -6 -6 ------- Run | Yrd Mat Min Sub Scr Fac Was Fac Traps Triggered 3 | . . . . . 2 . 1 Indirectly . | . . . . . . . . Trap Hack Attempts . | . . . . . . . . Triggered . | . . . . . . . . Disarmed . | . . . . . . . . Reprogrammed . | . . . . . . . . Reused . | . . . . . . . . Traps Extracted . | . . . . . . . . Installed . | . . . . . . . . Triggered . | . . . . . . . . Machines | -11 -10 -10 -10 -9 -6 -6 -6 ---------- Run | Yrd Mat Min Sub Scr Fac Was Fac Machines Disabled 1 | . . . . . 1 . . Max in Single Turn 1 | . . . . . 1 . . Machines Repaired . | . . . . . . . . Machines Dismantled . | . . . . . . . . Machines Sabotaged . | . . . . . . . . Overloaded Fab Kills . | . . . . . . . . Hacking | -11 -10 -10 -10 -9 -6 -6 -6 --------- Run | Yrd Mat Min Sub Scr Fac Was Fac Machines Accessed 9 | . 3 1 . 3 1 . 1 Terminals 4 | . 3 . . . . . 1 Fabricators . | . . . . . . . . Repair Stations . | . . . . . . . . Recycling Units 1 | . . . . . 1 . . Scanalyzers . | . . . . . . . . Garrison Access . | . . . . . . . . Total Hacks 34 | . 6 1 . 24 1 . 2 Successful 30 | . 3 1 . 24 1 . 1 Failed 4 | . 3 . . . . . 1 Catastrophic 1 | . . . . . . . 1 Database Lockouts . | . . . . . . . . Manual 9 | . 6 . . . 1 . 2 Terminals 8 | . 6 . . . . . 2 Fabricators . | . . . . . . . . Repair Stations . | . . . . . . . . Recycling Units 1 | . . . . . 1 . . Scanalyzers . | . . . . . . . . Garrison Access . | . . . . . . . . Terminal Hacks 26 | . 1 1 . 24 . . . Record 23 | . . . . 23 . . . Open Door 1 | . . 1 . . . . . Branch Access Points 1 | . 1 . . . . . . Proto ID Catalog 1 | . . . . 1 . . . Fabricator Hacks . | . . . . . . . . Repair Station Hacks . | . . . . . . . . Recycling Unit Hacks . | . . . . . . . . Scanalyzer . | . . . . . . . . Garrison Access Hacks . | . . . . . . . . Unauthorized Hacks 4 | . 2 . . . 1 . 1 Terminals 3 | . 2 . . . . . 1 Botnet 3 | . 2 . . . . . 1 Fabricators . | . . . . . . . . Repair Stations . | . . . . . . . . Recycling Units 1 | . . . . . 1 . . Fedlink 1 | . . . . . 1 . . Scanalyzers . | . . . . . . . . Garrison Access . | . . . . . . . . Data Cores Recovered 2 | . 2 . . . . . . Used 1 | . 1 . . . . . . Hacking Detections 3 | . 2 . . . . . 1 Full Trace Events 1 | . . . . . . . 1 Feedback Events . | . . . . . . . . Feedback Blocked . | . . . . . . . . Robot Schematics Acquired . | . . . . . . . . Robots Built . | . . . . . . . . Authchips . | . . . . . . . . Time . | . . . . . . . . Total Robot Build Rating . | . . . . . . . . Part Schematics Acquired . | . . . . . . . . Parts Built . | . . . . . . . . Authchips . | . . . . . . . . Time . | . . . . . . . . Total Part Build Rating . | . . . . . . . . Parts Repaired . | . . . . . . . . Time . | . . . . . . . . Parts Recycled . | . . . . . . . . Recycled Matter . | . . . . . . . . Retrieved Matter . | . . . . . . . . Retrieved Components . | . . . . . . . . Parts Scanalyzed . | . . . . . . . . Part Schematics Acquired . | . . . . . . . . Parts Damaged . | . . . . . . . . Bothacking | -11 -10 -10 -10 -9 -6 -6 -6 ------------ Run | Yrd Mat Min Sub Scr Fac Was Fac Used RIF Installer . | . . . . . . . . Robots Hacked . | . . . . . . . . Non-combat . | . . . . . . . . Combat . | . . . . . . . . Robot Hacks Applied . | . . . . . . . . Relay Couplers Released . | . . . . . . . . Fabnet Peak Effective % . | . . . . . . . . Robots Rewired . | . . . . . . . . Allies Hacked . | . . . . . . . . Hacks Repelled . | . . . . . . . . Allies | -11 -10 -10 -10 -9 -6 -6 -6 -------- Run | Yrd Mat Min Sub Scr Fac Was Fac Total Allies . | . . . . . . . . Largest Group . | . . . . . . . . Highest-Rated Group . | . . . . . . . . Highest-Rated Ally . | . . . . . . . . Total Orders . | . . . . . . . . Ally Attacks . | . . . . . . . . Total Damage . | . . . . . . . . Kills . | . . . . . . . . Allies Corrupted . | . . . . . . . . Allies Melted . | . . . . . . . . Intel | -11 -10 -10 -10 -9 -6 -6 -6 ------- Run | Yrd Mat Min Sub Scr Fac Was Fac Active Infowar (turns) 2690 | . 141 467 258 1360 464 . . Optics 400 | . . . . . 400 . . Sensors 2690 | . 141 467 258 1360 464 . . Robot Analysis Total . | . . . . . . . . Derelict Logs Recovered 3 | . . . 2 1 . . . Drone Launches . | . . . . . . . . Drone Recoveries . | . . . . . . . . Exploration | -11 -10 -10 -10 -9 -6 -6 -6 ------------- Run | Yrd Mat Min Sub Scr Fac Was Fac Turns Passed 3709 | 49 189 467 258 1360 978 94 314 Spaces Moved 3095 | 45 170 289 130 1511 474 147 329 Core 550 | 8 . . . . 77 147 318 Treads 5 | . . . . . 5 . . Legs . | . . . . . . . . Wheels 2529 | 37 170 289 130 1511 392 . . Hover 11 | . . . . . . . 11 Flight . | . . . . . . . . Fastest Speed 50 | 50 90 90 80 80 50 50 50 Average Speed 88 | 82 90 90 88 86 132 50 53 Slowest Speed 700 | 90 90 90 90 95 700 50 100 Overloaded Moves . | . . . . . . . . Propulsion Burnouts . | . . . . . . . . Robots Hopped . | . . . . . . . . Potential Cave-ins . | . . . . . . . . Cave-ins Triggered . | . . . . . . . . Exploration Rate (%) 34 | 3 40 64 8 66 16 74 7 Regions Visited 7 Branch Regions 3 Pre-discovered Areas 5 | . . . . 5 . . . Known Exits Taken 2 | . 1 . . 1 . . . Unknown Exits Taken 3 | 1 . 1 1 . . . . Scrap Searched 2 | . . 1 . 1 . . . Spaces Dug . | . . . . . . . . Terrain Destroyed 40 | . . . . . 40 . . Melee . | . . . . . . . . Projectile 27 | . . . . . 27 . . AOE 13 | . . . . . 13 . . Terrain Rammed . | . . . . . . . . Walls Destroyed . | . . . . . . . . Machines Disabled . | . . . . . . . . Actions | -11 -10 -10 -10 -9 -6 -6 -6 --------- Run | Yrd Mat Min Sub Scr Fac Was Fac Total 3906 | 56 187 486 256 1564 730 166 461 Wait 659 | . . 189 112 41 174 20 123 Move 3089 | 44 169 288 129 1510 474 146 329 Hop . | . . . . . . . . Pick Up 34 | 6 6 3 1 7 11 . . Fast Attach 6 | . . . 1 . 1 . 4 Attach 21 | 6 1 . . . 14 . . Detach . | . . . . . . . . Swap 7 | . 1 . 1 1 4 . . Drop 10 | . . 1 3 1 5 . . Fire 76 | . 10 5 9 . 47 . 5 Melee . | . . . . . . . . Ram . | . . . . . . . . Kick . | . . . . . . . . Crush . | . . . . . . . . Escape Stasis . | . . . . . . . . Rewire 4 | . . . . 4 . . . Trap . | . . . . . . . . Miscellaneous . | . . . . . . . . Route ------- -11/Scrapyard -10/Materials -10/Mines (discovered 2 exits: [*Mat] / [*Sub]) -10/Subcaves -9/Scraptown (discovered 2 exits: *Fac x2) -6/Factory (discovered 2 exits: *Fac x2) -6/Waste -6/Factory History --------- Turn | Location | Event 24 | -11/Scrapyard | Discovered new exit (range 15) 50 | -11/Scrapyard | Entered Materials 169 | -10/Materials | Identified exit to Mines 239 | -10/Materials | Entered Mines 243 | -10/Mines | Found the Drone Emporium 247 | -10/Mines | Found Prototype Device 264 | -10/Mines | Found a damaged Exp. Sensor Array with a note attached 267 | -10/Mines | Found Prototype Device 302 | -10/Mines | Build established: Mutant 379 | -10/Mines | A weapon hastily lodged in a ceiling crevice suddenly fell to the ground 418 | -10/Mines | Discovered new exit (range 12) 695 | -10/Mines | Discovered new exit (range 12) 706 | -10/Mines | Entered Subcaves 707 | -10/Subcaves | Approached by a straggling Scientist 707 | -10/Subcaves | Learned Materials security intel 726 | -10/Subcaves | Learned Materials terminal intel 856 | -10/Subcaves | Scientist uncovered a shortcut to Scraptown 964 | -10/Subcaves | Entered Scraptown 1052 | -9/Scraptown | Visited Comm Corps 1098 | -9/Scraptown | Visited Awakened 1124 | -9/Scraptown | Visited Cave Peace 1134 | -9/Scraptown | Visited IN-MT5's Study 1159 | -9/Scraptown | Visited Red Mages 1209 | -9/Scraptown | Scanned Subdweller tech in exchange for log data 1211 | -9/Scraptown | Learned 8 Factory zone layouts 1257 | -9/Scraptown | Visited Cyclists 1331 | -9/Scraptown | Visited UFD Registry 1331 | -9/Scraptown | Registered with UFD as "Metalfunk" 1358 | -9/Scraptown | Visited Cartography Club 1401 | -9/Scraptown | Visited Abandonware Association 1411 | -9/Scraptown | Learned abandonware demo "MELTYB.EXE" 1411 | -9/Scraptown | Learned abandonware demo "KABOOM.EXE" 1431 | -9/Scraptown | Visited Junk Repository 1447 | -9/Scraptown | Visited Modified Component R&D 1464 | -9/Scraptown | Visited Infowarlord's Domain 1464 | -9/Scraptown | Identified Exp. Sensor Array 1486 | -9/Scraptown | Visited LU-1G1's Boring Crew 1523 | -9/Scraptown | Visited Science Guys 1594 | -9/Scraptown | Visited A0-MCA Data Center 1641 | -9/Scraptown | Delivered Scrap Shield to a Scientist 1712 | -9/Scraptown | Found Spectral Analyzer 1736 | -9/Scraptown | Visited Junk Repository 1839 | -9/Scraptown | Found Surveybot 17 Chip 1915 | -9/Scraptown | Learned location of Cetus (-4) 1915 | -9/Scraptown | Learned location of Archives (-4) 1915 | -9/Scraptown | Learned location of Quarantine (-3) 1915 | -9/Scraptown | Learned 12 Factory zone layouts 1915 | -9/Scraptown | Learned 12 Research zone layouts 1915 | -9/Scraptown | Learned 8 Lower Caves zone layouts 1915 | -9/Scraptown | Learned 16 Lower Caves zone layouts 1915 | -9/Scraptown | Learned 24 Upper Caves zone layouts 1915 | -9/Scraptown | Learned 20 Proximity Caves zone layouts 1915 | -9/Scraptown | Learned 4 Hub_04(d) zone layouts 1915 | -9/Scraptown | Learned Storage emergency access door positions 1915 | -9/Scraptown | Learned location of 1 exit from Factory 1915 | -9/Scraptown | Learned location of 3 exits from Lower Caves 1915 | -9/Scraptown | Learned location of 1 exit from Upper Caves 1915 | -9/Scraptown | Identified exit to Factory 2199 | -9/Scraptown | Found Scrap Suit 2266 | -9/Scraptown | Met Optimus 2266 | -9/Scraptown | Accepted into 0bPrime 2324 | -9/Scraptown | Entered Factory 2324 | -6/Factory | Evolved 8 slots: Power x1, Propulsion x1, Utility x5, Weapon x1 2325 | -6/Factory | Identified exit to Factory 2350 | -6/Factory | Loaded intel: 8 recycling unit locations 2788 | -6/Factory | Lost 4 parts (1n3u) 3029 | -6/Factory | Build established: Tank 3228 | -6/Factory | Lost 8 parts (1p1n3u3w) 3265 | -6/Factory | Core integrity fell below 50% 3298 | -6/Factory | System corruption reached 10% 3302 | -6/Factory | Sucked down chute 3302 | -6/Factory | Entered Waste 3310 | -6/Waste | Spotted C-40 Crusher 3349 | -6/Waste | Spotted C-40 Crusher 3349 | -6/Waste | Spotted C-40 Crusher 3358 | -6/Waste | Spotted C-40 Crusher 3370 | -6/Waste | Spotted C-40 Crusher 3376 | -6/Waste | Spotted C-40 Crusher 3388 | -6/Waste | Discovered new exit (range 16) 3396 | -6/Waste | Entered Factory 3458 | -6/Factory | Build established: Mutant 3477 | -6/Factory | Allied Derelicts emerged from ambush trap array 3627 | -6/Factory | Core integrity fell below 20% 3710 | -6/Factory | Destroyed by H-66 Slayer with Gauss Rifle Last Messages --------------- EO-SGD(g) destroyed. Acquired 64 matter. K-01 Serf collects debris. Acquired Beamcaster. Penetrated by Slug. K-01 Serf collects debris. Penetrated by Slug. Beamcaster destroyed. Slug penetrates Wall. Acquired Prototype Ballistic Gun. Identified Imp. Heavy Machine Gun. System corrupted: Energy discharge (-38). Acquired Imp. Gravmag System. Acquired Adv. Targeting Computer. System corrupted: Matter fused (-9). Penetrated by Slug. Slug penetrates Wall. System corrupted: Substantial component data lost. Slug penetrates Wall. Map ----- +----------------------------------------------------+ | ?????# # # """ """ | | ?????# """"######## | | ?????# """"# """"" """"" | | ?????# """"# """"" """"" | | ?????# """"# """ """ | | ?????# + | | ?????# # | | ?????# ! # ###+######" ""#### | | ?????########### # ##"R""#??# | | ??????# # """" ##""" #??# | | ??????# # """" #######??# | | ??????# # """" ########## | | ??????# # """" / | | ??????# # """" ########## | | ????######/########### """" #????????# | | ????# """" #???# """" #????????? | | ????# ""S"" #???# #????????? | | ????# "" "" #???# """" #????????? | | ????# #???# """" #????????? | | ????#//! #???# """" #?????????+ | | ????#/!! #???# """" #?????????? | | ????#/!! """" #???# """" #?????????? | | ????# """" #???# """" #?????????? | | ????#= """" #???? """" #?????????? | | ????# """" #???? #?????????? | | ????# @ #???#########?????????? | | ????# #?????????????????????? | | ????##############?????????????????????? | | ???????????????????????????????????????? | | ???????????????????????????????????????? | | ???????????????????????????????????????? | | ???????????????????????????????????????? | | ???????????????????????????????????????? | | ???????????????????????????????????????? | | ???????????????????????????????????????? | | ???????????????????????????????????????? | | ???????????????????????????????????????? | | ???????????????????????????????????????? | | ???????????????????????????????????????? | | ???????????????????????????????????????? | | ???????????????????????????????????????? | | ???????????????????????????????????????? | | ???????????????????????????????????????? | | ???????????????????????????????????????? | | ???????????????????????????????????????? | | ???????????????????????????????????????? | | ???????????????????????????????????????? | | ???????????????????????????????????????? | | ???????????????????????????????????????? | | ???????????????????????????????????????? | +----------------------------------------------------+ Best States ------------- Heat Dissipation 56 Energy Generation 27 Energy Capacity 300 Matter Stores 300 Matter Capacity 300 Sight Range 24 Robot Scan Range 20 Terrain Scan Density 1210 Armor Coverage 375 Evasion (%) 53 Targeting Accuracy 8 Recoil Reduction 1 Item Schematics ----------------- None Robot Schematics ------------------ None Fabricated ------------ Nothing Repaired ---------- Nothing Alien Tech Used ----------------- None Achievements -------------- None Challenges ------------ None Game ------ Seed EnhancedStormSplitter Manual? 0 Play Time 00:36:42 Cumulative 28.3 hours Start 2025.09.21 @ 17:37:58 End 2025.09.21 @ 18:42:09 Sessions 1 Manual Loads 0 Difficulty Rogue Special Mode None Game No. 48 Rogue 27 Adventurer 21 Explorer 0 Win Type - Total 1 Types 0/0/0/0/0/0/0/1/0/0 Lore% 51 Gallery% 33 Achievement% 38 Wizard Run 0 Options --------- Layout 1 ASCII 0 Keyboard 0 Movement Mouse Keybinds 0 Fullscreen 2 Font 24/Smallcaps Map View 50x35 Zoom Use 0% Tactical HUD 0 Map Filters NONE Filters NONE Steam 1 RUN: 890db37a-96ee-432e-9cf5-113b551b5c20